[Event "January 2 Early 2024"]
[Site "https://www.chess.com"]
[Date "2024.01.02"]
[Round "7"]
[White "Tiarks, Jann-Christian"]
[Black "Weetik, Vjacheslav"]
[Result "1-0"]
[Board "56"]
[TimeControl "180+1"]
[WhiteFideId "12951595"]
[BlackFideId "4153472"]
[WhiteElo "2452"]
[BlackElo "2683"]
[WhiteTeam "GER"]
[BlackTeam "RUS"]
[WhiteClock "0:00:35"]
[BlackClock "0:00:07"]

1. e4 {[%clk 0:03:00]}  c6 {[%clk 0:02:59]} 2. d4 {[%clk 0:02:57]}  d5 {[%clk 0:03:00]} 3. e5 {[%clk 0:02:58]}  Bf5 {[%clk 0:02:57]} 4. Nf3 {[%clk 0:02:57]}  e6 {[%clk 0:02:57]} 5. Be2 {[%clk 0:02:57]}  Nd7 {[%clk 0:02:58]} 6. O-O {[%clk 0:02:56]}  Bg6 {[%clk 0:02:59]} 7. c4 {[%clk 0:02:52]}  Nh6 {[%clk 0:02:58]} 8. Bxh6 {[%clk 0:02:46]}  gxh6 {[%clk 0:02:58]} 9. Nc3 {[%clk 0:02:46]}  Bg7 {[%clk 0:02:52]} 10. Qb3 {[%clk 0:02:42]}  Rb8 {[%clk 0:02:51]} 11. cxd5 {[%clk 0:02:30]}  exd5 {[%clk 0:02:51]} 12. Qa3 {[%clk 0:02:24]}  a6 {[%clk 0:02:43]} 13. Rfe1 {[%clk 0:02:23]}  Nf8 {[%clk 0:02:21]} 14. Na4 {[%clk 0:02:17]}  Ne6 {[%clk 0:02:17]} 15. Nc5 {[%clk 0:02:17]}  Bf8 {[%clk 0:02:18]} 16. Qc3 {[%clk 0:02:16]}  Bxc5 {[%clk 0:02:13]} 17. dxc5 {[%clk 0:02:16]}  d4 {[%clk 0:02:14]} 18. Qc1 {[%clk 0:02:04]}  Qd5 {[%clk 0:02:06]} 19. b4 {[%clk 0:02:02]}  d3 {[%clk 0:02:02]} 20. Bf1 {[%clk 0:02:01]}  Rg8 {[%clk 0:01:58]} 21. Nd2 {[%clk 0:01:34]}  Nf4 {[%clk 0:01:44]} 22. g3 {[%clk 0:01:25]}  Bf5 {[%clk 0:01:28]} 23. Ne4 {[%clk 0:01:10]}  Ne2+ {[%clk 0:00:55]} 24. Rxe2 {[%clk 0:00:50]}  Bxe4 {[%clk 0:00:54]} 25. Re3 {[%clk 0:00:46]}  Rd8 {[%clk 0:00:51]} 26. Qd2 {[%clk 0:00:45]}  h5 {[%clk 0:00:38]} 27. Rae1 {[%clk 0:00:44]}  Bf5 {[%clk 0:00:34]} 28. Bg2 {[%clk 0:00:39]}  Qd4 {[%clk 0:00:31]} 29. Be4 {[%clk 0:00:38]}  Bxe4 {[%clk 0:00:17]} 30. Rxe4 {[%clk 0:00:39]}  Qd5 {[%clk 0:00:17]} 31. e6 {[%clk 0:00:38]}  fxe6 {[%clk 0:00:11]} 32. Rxe6+ {[%clk 0:00:38]}  Kd7 {[%clk 0:00:11]} 33. Rd6+ {[%clk 0:00:35]}  Qxd6 {[%clk 0:00:11]} 34. cxd6 {[%clk 0:00:36]}  Rg6 {[%clk 0:00:09]} 35. Qxd3 {[%clk 0:00:35]}  Rxd6 {[%clk 0:00:07]} 36. Qxh7+ {[%clk 0:00:35]} 1-0

[Event "January 2 Early 2024"]
[Site "https://www.chess.com"]
[Date "2024.01.02"]
[Round "7"]
[White "Csonka, Balazs"]
[Black "Gajwa Ankit"]
[Result "1/2-1/2"]
[Board "57"]
[TimeControl "180+1"]
[WhiteFideId "742910"]
[BlackFideId "5077834"]
[WhiteElo "2679"]
[BlackElo "2372"]
[WhiteTeam "HUN"]
[BlackTeam "IND"]
[WhiteClock "0:00:33"]
[BlackClock "0:01:31"]

1. e4 {[%clk 0:03:00]}  c5 {[%clk 0:02:59]} 2. Nf3 {[%clk 0:02:59]}  Nc6 {[%clk 0:02:59]} 3. d4 {[%clk 0:02:57]}  cxd4 {[%clk 0:02:58]} 4. Nxd4 {[%clk 0:02:58]}  Nf6 {[%clk 0:02:58]} 5. Nc3 {[%clk 0:02:59]}  d6 {[%clk 0:02:58]} 6. f3 {[%clk 0:02:56]}  g6 {[%clk 0:02:58]} 7. Be3 {[%clk 0:02:55]}  Bg7 {[%clk 0:02:57]} 8. Qd2 {[%clk 0:02:56]}  O-O {[%clk 0:02:57]} 9. O-O-O {[%clk 0:02:52]}  d5 {[%clk 0:02:56]} 10. Qe1 {[%clk 0:02:53]}  e5 {[%clk 0:02:52]} 11. Nxc6 {[%clk 0:02:51]}  bxc6 {[%clk 0:02:52]} 12. exd5 {[%clk 0:02:52]}  Nxd5 {[%clk 0:02:52]} 13. Bc4 {[%clk 0:02:49]}  Be6 {[%clk 0:02:51]} 14. Ne4 {[%clk 0:02:46]}  Rb8 {[%clk 0:02:50]} 15. Bb3 {[%clk 0:02:43]}  a5 {[%clk 0:02:48]} 16. Bc5 {[%clk 0:02:11]}  f5 {[%clk 0:02:43]} 17. Kb1 {[%clk 0:01:52]}  fxe4 {[%clk 0:02:39]} 18. fxe4 {[%clk 0:01:52]}  Rf4 {[%clk 0:02:29]} 19. g3 {[%clk 0:01:31]}  Rf3 {[%clk 0:02:23]} 20. exd5 {[%clk 0:01:10]}  cxd5 {[%clk 0:02:22]} 21. Rf1 {[%clk 0:01:10]}  Rxf1 {[%clk 0:02:18]} 22. Qxf1 {[%clk 0:01:11]}  a4 {[%clk 0:02:15]} 23. Bxa4 {[%clk 0:00:57]}  Qa5 {[%clk 0:02:14]} 24. Bd6 {[%clk 0:00:57]}  Rxb2+ {[%clk 0:02:09]} 25. Kxb2 {[%clk 0:00:58]}  e4+ {[%clk 0:02:06]} 26. Ka3 {[%clk 0:00:31]}  Qc3+ {[%clk 0:01:50]} 27. Bb3 {[%clk 0:00:31]}  Qa5+ {[%clk 0:01:36]} 28. Ba4 {[%clk 0:00:31]}  Qc3+ {[%clk 0:01:31]} 29. Bb3 {[%clk 0:00:32]}  Qa5+ {[%clk 0:01:31]} 30. Ba4 {[%clk 0:00:33]} 1/2-1/2

[Event "January 2 Early 2024"]
[Site "https://www.chess.com"]
[Date "2024.01.02"]
[Round "7"]
[White "Assylov, Miras"]
[Black "Tari, Aryan"]
[Result "0-1"]
[Board "59"]
[TimeControl "180+1"]
[WhiteFideId "13728873"]
[BlackFideId "1510045"]
[WhiteElo "2605"]
[BlackElo "2915"]
[WhiteTeam "KAZ"]
[BlackTeam "NOR"]
[WhiteClock "0:00:00"]
[BlackClock "0:01:10"]

1. b3 {[%clk 0:03:00]}  a5 {[%clk 0:02:59]} 2. a3 {[%clk 0:02:56]}  d5 {[%clk 0:02:51]} 3. Bb2 {[%clk 0:02:55]}  Bf5 {[%clk 0:02:52]} 4. d3 {[%clk 0:02:49]}  e6 {[%clk 0:02:49]} 5. Nd2 {[%clk 0:02:48]}  Nf6 {[%clk 0:02:47]} 6. g3 {[%clk 0:02:46]}  h6 {[%clk 0:02:43]} 7. Bg2 {[%clk 0:02:46]}  Bh7 {[%clk 0:02:43]} 8. e4 {[%clk 0:02:45]}  c6 {[%clk 0:02:39]} 9. Nh3 {[%clk 0:02:43]}  Be7 {[%clk 0:02:39]} 10. Nf4 {[%clk 0:02:42]}  O-O {[%clk 0:02:38]} 11. O-O {[%clk 0:02:42]}  Nbd7 {[%clk 0:02:35]} 12. e5 {[%clk 0:01:56]}  Ne8 {[%clk 0:02:33]} 13. h4 {[%clk 0:01:56]}  a4 {[%clk 0:02:23]} 14. b4 {[%clk 0:01:51]}  c5 {[%clk 0:02:24]} 15. bxc5 {[%clk 0:01:49]}  Nxc5 {[%clk 0:02:23]} 16. Nf3 {[%clk 0:01:39]}  Nc7 {[%clk 0:02:20]} 17. Re1 {[%clk 0:01:36]}  Nd7 {[%clk 0:02:16]} 18. Nd4 {[%clk 0:01:33]}  Nb8 {[%clk 0:02:11]} 19. Qg4 {[%clk 0:01:32]}  Kh8 {[%clk 0:02:09]} 20. Nh5 {[%clk 0:01:28]}  Rg8 {[%clk 0:02:10]} 21. Qf3 {[%clk 0:01:20]}  Qe8 {[%clk 0:02:06]} 22. Nf4 {[%clk 0:00:53]}  Nc6 {[%clk 0:02:06]} 23. Reb1 {[%clk 0:00:46]}  Nxd4 {[%clk 0:02:03]} 24. Bxd4 {[%clk 0:00:47]}  Nb5 {[%clk 0:02:02]} 25. Bb2 {[%clk 0:00:45]}  Rc8 {[%clk 0:02:03]} 26. Rc1 {[%clk 0:00:39]}  Nc3 {[%clk 0:01:57]} 27. Ne2 {[%clk 0:00:29]}  Nxe2+ {[%clk 0:01:55]} 28. Qxe2 {[%clk 0:00:30]}  b5 {[%clk 0:01:56]} 29. Qe1 {[%clk 0:00:29]}  Qd7 {[%clk 0:01:48]} 30. Bc3 {[%clk 0:00:28]}  Rc7 {[%clk 0:01:41]} 31. Ba5 {[%clk 0:00:27]}  Rc6 {[%clk 0:01:40]} 32. Bf1 {[%clk 0:00:03]}  Rgc8 {[%clk 0:01:39]} 33. c3 {[%clk 0:00:03]}  d4 {[%clk 0:01:35]} 34. c4 {[%clk 0:00:01]}  bxc4 {[%clk 0:01:34]} 35. dxc4 {[%clk 0:00:02]}  d3 {[%clk 0:01:33]} 36. Bb4 {[%clk 0:00:02]}  Rxc4 {[%clk 0:01:30]} 37. Rxc4 {[%clk 0:00:02]}  Rxc4 {[%clk 0:01:30]} 38. Bxe7 {[%clk 0:00:03]}  Qxe7 {[%clk 0:01:31]} 39. Qa5 {[%clk 0:00:03]}  Bf5 {[%clk 0:01:26]} 40. Qa8+ {[%clk 0:00:01]}  Kh7 {[%clk 0:01:26]} 41. Qf3 {[%clk 0:00:01]}  Qd7 {[%clk 0:01:22]} 42. Rd1 {[%clk 0:00:02]}  Rd4 {[%clk 0:01:20]} 43. Qe3 {[%clk 0:00:01]}  d2 {[%clk 0:01:18]} 44. Be2 {[%clk 0:00:01]}  Bc2 {[%clk 0:01:18]} 45. Ra1 {[%clk 0:00:01]}  d1=Q+ {[%clk 0:01:18]} 46. Bxd1 {[%clk 0:00:02]}  Rxd1+ {[%clk 0:01:19]} 47. Rxd1 {[%clk 0:00:03]}  Qxd1+ {[%clk 0:01:19]} 48. Kh2 {[%clk 0:00:03]}  Qd3 {[%clk 0:01:18]} 49. Qc5 {[%clk 0:00:03]}  Qe2 {[%clk 0:01:10]} 50. Kg1 {[%clk 0:00:03]}  Be4 {[%clk 0:01:10]} 51. Qc1 {[%clk 0:00:00]}  Qf3 {[%clk 0:01:10]} 0-1

[Event "January 2 Early 2024"]
[Site "https://www.chess.com"]
[Date "2024.01.02"]
[Round "7"]
[White "Yeletsky, Ivan"]
[Black "Ambartsumova, Karina"]
[Result "1-0"]
[Board "60"]
[TimeControl "180+1"]
[WhiteFideId "24180327"]
[BlackFideId "4166299"]
[WhiteElo "2846"]
[BlackElo "2595"]
[WhiteTeam "RUS"]
[BlackTeam "RUS"]
[WhiteClock "0:00:08"]
[BlackClock "0:00:05"]

1. e4 {[%clk 0:03:00]}  e5 {[%clk 0:02:59]} 2. Nf3 {[%clk 0:03:00]}  Nc6 {[%clk 0:03:00]} 3. Bb5 {[%clk 0:03:00]}  Nf6 {[%clk 0:03:00]} 4. Qe2 {[%clk 0:02:55]}  d6 {[%clk 0:02:56]} 5. d4 {[%clk 0:02:52]}  Bd7 {[%clk 0:02:31]} 6. Bxc6 {[%clk 0:02:39]}  Bxc6 {[%clk 0:02:31]} 7. Nc3 {[%clk 0:02:22]}  exd4 {[%clk 0:02:24]} 8. Nxd4 {[%clk 0:02:23]}  Be7 {[%clk 0:02:24]} 9. e5 {[%clk 0:02:08]}  dxe5 {[%clk 0:02:09]} 10. Nxc6 {[%clk 0:02:08]}  bxc6 {[%clk 0:02:10]} 11. O-O {[%clk 0:02:05]}  Bd6 {[%clk 0:02:00]} 12. Bg5 {[%clk 0:01:44]}  h6 {[%clk 0:02:00]} 13. Bh4 {[%clk 0:01:40]}  O-O {[%clk 0:01:27]} 14. Rad1 {[%clk 0:01:39]}  g5 {[%clk 0:01:20]} 15. Bg3 {[%clk 0:01:38]}  Qe7 {[%clk 0:01:18]} 16. Rfe1 {[%clk 0:01:28]}  Rfe8 {[%clk 0:01:17]} 17. Qc4 {[%clk 0:01:28]}  c5 {[%clk 0:01:10]} 18. b3 {[%clk 0:01:17]}  Rad8 {[%clk 0:00:56]} 19. f3 {[%clk 0:01:02]}  Qe6 {[%clk 0:00:46]} 20. Qxe6 {[%clk 0:00:59]}  Rxe6 {[%clk 0:00:44]} 21. Rxe5 {[%clk 0:00:51]}  Rde8 {[%clk 0:00:31]} 22. Rf5 {[%clk 0:00:35]}  Bxg3 {[%clk 0:00:20]} 23. hxg3 {[%clk 0:00:36]}  Nh5 {[%clk 0:00:21]} 24. Kf2 {[%clk 0:00:30]}  c4 {[%clk 0:00:16]} 25. Rd7 {[%clk 0:00:19]}  R8e7 {[%clk 0:00:07]} 26. Rxe7 {[%clk 0:00:19]}  Rxe7 {[%clk 0:00:08]} 27. Nd5 {[%clk 0:00:20]}  Re6 {[%clk 0:00:07]} 28. g4 {[%clk 0:00:12]}  Ng7 {[%clk 0:00:05]} 29. Rf6 {[%clk 0:00:12]}  cxb3 {[%clk 0:00:04]} 30. axb3 {[%clk 0:00:11]}  c6 {[%clk 0:00:04]} 31. Rxe6 {[%clk 0:00:10]}  Nxe6 {[%clk 0:00:04]} 32. Ne7+ {[%clk 0:00:11]}  Kg7 {[%clk 0:00:04]} 33. Nxc6 {[%clk 0:00:12]}  a6 {[%clk 0:00:03]} 34. Ke3 {[%clk 0:00:12]}  Kf6 {[%clk 0:00:03]} 35. c3 {[%clk 0:00:12]}  Nf4 {[%clk 0:00:04]} 36. g3 {[%clk 0:00:12]}  Nd5+ {[%clk 0:00:04]} 37. Kd4 {[%clk 0:00:12]}  Nc7 {[%clk 0:00:05]} 38. c4 {[%clk 0:00:10]}  Ke6 {[%clk 0:00:05]} 39. Nd8+ {[%clk 0:00:09]}  Ke7 {[%clk 0:00:06]} 40. Nb7 {[%clk 0:00:10]}  Ne6+ {[%clk 0:00:05]} 41. Ke3 {[%clk 0:00:10]}  Ng7 {[%clk 0:00:04]} 42. Nc5 {[%clk 0:00:09]}  a5 {[%clk 0:00:05]} 43. Nb7 {[%clk 0:00:10]}  f5 {[%clk 0:00:05]} 44. Nxa5 {[%clk 0:00:08]}  fxg4 {[%clk 0:00:06]} 45. fxg4 {[%clk 0:00:09]}  h5 {[%clk 0:00:06]} 46. gxh5 {[%clk 0:00:08]}  Nxh5 {[%clk 0:00:07]} 47. Kf3 {[%clk 0:00:09]}  Nf6 {[%clk 0:00:07]} 48. b4 {[%clk 0:00:09]}  Kd6 {[%clk 0:00:07]} 49. Nb3 {[%clk 0:00:09]}  Ke5 {[%clk 0:00:07]} 50. b5 {[%clk 0:00:07]}  g4+ {[%clk 0:00:08]} 51. Ke3 {[%clk 0:00:07]}  Nh5 {[%clk 0:00:08]} 52. Kf2 {[%clk 0:00:06]}  Nf6 {[%clk 0:00:08]} 53. c5 {[%clk 0:00:05]}  Kd5 {[%clk 0:00:08]} 54. c6 {[%clk 0:00:03]}  Kd6 {[%clk 0:00:08]} 55. Nd4 {[%clk 0:00:03]}  Ne4+ {[%clk 0:00:08]} 56. Kg2 {[%clk 0:00:04]}  Nc3 {[%clk 0:00:07]} 57. b6 {[%clk 0:00:04]}  Nd5 {[%clk 0:00:06]} 58. b7 {[%clk 0:00:04]}  Kc7 {[%clk 0:00:06]} 59. Ne6+ {[%clk 0:00:04]}  Kb8 {[%clk 0:00:06]} 60. Nc5 {[%clk 0:00:05]}  Nb4 {[%clk 0:00:05]} 61. Nd7+ {[%clk 0:00:06]}  Ka7 {[%clk 0:00:05]} 62. b8=Q+ {[%clk 0:00:07]}  Ka6 {[%clk 0:00:05]} 63. Qb6# {[%clk 0:00:08]} 1-0

[Event "January 2 Early 2024"]
[Site "https://www.chess.com"]
[Date "2024.01.02"]
[Round "7"]
[White "Shubenkova, Veronika"]
[Black "Mekhitarian, Krikor Sevag"]
[Result "1/2-1/2"]
[Board "61"]
[TimeControl "180+1"]
[WhiteFideId "44124040"]
[BlackFideId "2107660"]
[WhiteElo "2597"]
[BlackElo "2840"]
[WhiteTeam "RUS"]
[BlackTeam "BRA"]
[WhiteClock "0:00:21"]
[BlackClock "0:00:02"]

1. e4 {[%clk 0:03:00]}  e6 {[%clk 0:02:59]} 2. d4 {[%clk 0:03:00]}  d5 {[%clk 0:03:00]} 3. exd5 {[%clk 0:03:01]}  exd5 {[%clk 0:03:00]} 4. Nf3 {[%clk 0:03:02]}  Nc6 {[%clk 0:02:59]} 5. c3 {[%clk 0:03:02]}  Bd6 {[%clk 0:02:58]} 6. Bd3 {[%clk 0:03:02]}  Nge7 {[%clk 0:02:59]} 7. O-O {[%clk 0:03:02]}  Bg4 {[%clk 0:02:59]} 8. Nbd2 {[%clk 0:03:02]}  Qd7 {[%clk 0:02:59]} 9. Qc2 {[%clk 0:03:02]}  Bf5 {[%clk 0:02:51]} 10. Re1 {[%clk 0:03:02]}  O-O {[%clk 0:02:49]} 11. Nf1 {[%clk 0:03:00]}  f6 {[%clk 0:02:48]} 12. Ng3 {[%clk 0:02:58]}  Bxd3 {[%clk 0:02:46]} 13. Qxd3 {[%clk 0:02:57]}  Rfe8 {[%clk 0:02:47]} 14. Bd2 {[%clk 0:02:53]}  Nd8 {[%clk 0:02:17]} 15. Re2 {[%clk 0:02:49]}  Nf7 {[%clk 0:02:14]} 16. Rae1 {[%clk 0:02:48]}  Bxg3 {[%clk 0:02:04]} 17. hxg3 {[%clk 0:02:48]}  Nd6 {[%clk 0:02:04]} 18. Bf4 {[%clk 0:02:46]}  Ne4 {[%clk 0:01:19]} 19. Nd2 {[%clk 0:02:43]}  Nxd2 {[%clk 0:01:18]} 20. Qxd2 {[%clk 0:02:40]}  c6 {[%clk 0:01:17]} 21. Re6 {[%clk 0:02:25]}  Ng6 {[%clk 0:01:11]} 22. Rxe8+ {[%clk 0:01:59]}  Rxe8 {[%clk 0:01:11]} 23. Rxe8+ {[%clk 0:01:59]}  Qxe8 {[%clk 0:01:12]} 24. Qe3 {[%clk 0:01:54]}  Qd7 {[%clk 0:01:10]} 25. Qd3 {[%clk 0:01:44]}  Kf7 {[%clk 0:01:08]} 26. Be3 {[%clk 0:01:44]}  Nf8 {[%clk 0:01:06]} 27. a3 {[%clk 0:01:38]}  b5 {[%clk 0:01:03]} 28. f3 {[%clk 0:01:38]}  h5 {[%clk 0:00:55]} 29. Kf2 {[%clk 0:01:37]}  Ng6 {[%clk 0:00:53]} 30. b3 {[%clk 0:01:32]}  Ne7 {[%clk 0:00:52]} 31. c4 {[%clk 0:01:21]}  a6 {[%clk 0:00:47]} 32. c5 {[%clk 0:01:19]}  Qe6 {[%clk 0:00:41]} 33. a4 {[%clk 0:01:11]}  Nf5 {[%clk 0:00:34]} 34. axb5 {[%clk 0:01:09]}  cxb5 {[%clk 0:00:31]} 35. b4 {[%clk 0:01:05]}  Ne7 {[%clk 0:00:29]} 36. Bf4 {[%clk 0:01:02]}  Nc6 {[%clk 0:00:26]} 37. Bd2 {[%clk 0:01:01]}  g6 {[%clk 0:00:23]} 38. Bc3 {[%clk 0:01:00]}  Kg7 {[%clk 0:00:18]} 39. Qb1 {[%clk 0:00:56]}  Kf7 {[%clk 0:00:14]} 40. Qd3 {[%clk 0:00:52]}  Qd7 {[%clk 0:00:12]} 41. Qe3 {[%clk 0:00:50]}  Kg7 {[%clk 0:00:12]} 42. Qe1 {[%clk 0:00:48]}  Qe7 {[%clk 0:00:11]} 43. Qxe7+ {[%clk 0:00:48]}  Nxe7 {[%clk 0:00:11]} 44. Ke2 {[%clk 0:00:47]}  Kf7 {[%clk 0:00:09]} 45. Ke3 {[%clk 0:00:47]}  Ke6 {[%clk 0:00:09]} 46. Ke2 {[%clk 0:00:47]}  Nc6 {[%clk 0:00:08]} 47. Kf2 {[%clk 0:00:47]}  Kf5 {[%clk 0:00:09]} 48. Ke2 {[%clk 0:00:47]}  g5 {[%clk 0:00:10]} 49. Kf2 {[%clk 0:00:47]}  g4 {[%clk 0:00:09]} 50. Ke2 {[%clk 0:00:46]}  Ke6 {[%clk 0:00:07]} 51. Ke3 {[%clk 0:00:45]}  Kf5 {[%clk 0:00:08]} 52. Ke2 {[%clk 0:00:45]}  Kg5 {[%clk 0:00:08]} 53. Bd2+ {[%clk 0:00:44]}  Kg6 {[%clk 0:00:09]} 54. Bc3 {[%clk 0:00:44]}  Kf5 {[%clk 0:00:07]} 55. Ke3 {[%clk 0:00:43]}  Nd8 {[%clk 0:00:06]} 56. Bd2 {[%clk 0:00:42]}  Nc6 {[%clk 0:00:03]} 57. Be1 {[%clk 0:00:41]}  Kg5 {[%clk 0:00:03]} 58. Bd2 {[%clk 0:00:40]}  f5 {[%clk 0:00:04]} 59. Kd3+ {[%clk 0:00:40]}  Kf6 {[%clk 0:00:04]} 60. Ke3 {[%clk 0:00:37]}  Kg6 {[%clk 0:00:03]} 61. Kd3 {[%clk 0:00:35]}  Kf7 {[%clk 0:00:03]} 62. Ke3 {[%clk 0:00:34]}  Ke6 {[%clk 0:00:03]} 63. Bc3 {[%clk 0:00:34]}  Kf7 {[%clk 0:00:02]} 64. Kf4 {[%clk 0:00:32]}  Kf6 {[%clk 0:00:03]} 65. Ke3 {[%clk 0:00:32]}  Nd8 {[%clk 0:00:03]} 66. Bd2 {[%clk 0:00:30]}  Kf7 {[%clk 0:00:02]} 67. Kd3 {[%clk 0:00:27]}  Ke6 {[%clk 0:00:02]} 68. Bg5 {[%clk 0:00:26]}  Nc6 {[%clk 0:00:02]} 69. Bd2 {[%clk 0:00:26]}  Kf6 {[%clk 0:00:02]} 70. Ke3 {[%clk 0:00:24]}  Kg6 {[%clk 0:00:02]} 71. Bc3 {[%clk 0:00:23]}  Kg5 {[%clk 0:00:02]} 72. Bd2 {[%clk 0:00:23]}  Kf6 {[%clk 0:00:01]} 73. Kd3 {[%clk 0:00:23]}  Kg6 {[%clk 0:00:01]} 74. Bc3 {[%clk 0:00:21]}  Kg5 {[%clk 0:00:01]} 75. Bd2+ {[%clk 0:00:21]}  Kf6 {[%clk 0:00:02]} 1/2-1/2

[Event "January 2 Early 2024"]
[Site "https://www.chess.com"]
[Date "2024.01.02"]
[Round "7"]
[White "Kosteniuk, Alexandra"]
[Black "Kilpatrick, Callum"]
[Result "1-0"]
[Board "64"]
[TimeControl "180+1"]
[WhiteFideId "4128125"]
[BlackFideId "414425"]
[WhiteElo "2756"]
[BlackElo "2551"]
[WhiteTeam "SUI"]
[BlackTeam "ENG"]
[WhiteClock "0:00:19"]
[BlackClock "0:00:04"]

1. e4 {[%clk 0:03:00]}  e5 {[%clk 0:02:59]} 2. Nf3 {[%clk 0:02:59]}  Nc6 {[%clk 0:02:59]} 3. Bb5 {[%clk 0:02:59]}  a6 {[%clk 0:02:58]} 4. Ba4 {[%clk 0:02:59]}  Nf6 {[%clk 0:02:59]} 5. d4 {[%clk 0:02:59]}  exd4 {[%clk 0:02:44]} 6. O-O {[%clk 0:02:59]}  Be7 {[%clk 0:02:29]} 7. e5 {[%clk 0:02:59]}  Ne4 {[%clk 0:02:25]} 8. Nxd4 {[%clk 0:02:58]}  Nxd4 {[%clk 0:02:06]} 9. Qxd4 {[%clk 0:02:58]}  Nc5 {[%clk 0:02:06]} 10. Bb3 {[%clk 0:02:58]}  Nxb3 {[%clk 0:02:06]} 11. cxb3 {[%clk 0:02:57]}  O-O {[%clk 0:02:03]} 12. Bf4 {[%clk 0:02:57]}  d5 {[%clk 0:01:52]} 13. exd6 {[%clk 0:02:54]}  cxd6 {[%clk 0:01:53]} 14. Nc3 {[%clk 0:02:51]}  Be6 {[%clk 0:01:50]} 15. Rfd1 {[%clk 0:02:50]}  Bf6 {[%clk 0:01:45]} 16. Qxd6 {[%clk 0:02:48]}  Qxd6 {[%clk 0:01:45]} 17. Rxd6 {[%clk 0:02:48]}  Rfd8 {[%clk 0:01:34]} 18. Rad1 {[%clk 0:02:44]}  Rxd6 {[%clk 0:01:34]} 19. Rxd6 {[%clk 0:02:44]}  Rd8 {[%clk 0:01:34]} 20. Rxd8+ {[%clk 0:02:42]}  Bxd8 {[%clk 0:01:35]} 21. Kf1 {[%clk 0:02:41]}  g5 {[%clk 0:01:32]} 22. Be5 {[%clk 0:02:39]}  f6 {[%clk 0:01:32]} 23. Bd4 {[%clk 0:02:39]}  Kf7 {[%clk 0:01:32]} 24. Ne4 {[%clk 0:02:37]}  Bc7 {[%clk 0:01:27]} 25. Nxf6 {[%clk 0:02:27]}  Bxh2 {[%clk 0:01:21]} 26. Nxh7 {[%clk 0:02:04]}  Bf4 {[%clk 0:01:22]} 27. Nf6 {[%clk 0:01:57]}  Bf5 {[%clk 0:01:20]} 28. Nd5 {[%clk 0:01:49]}  Bc1 {[%clk 0:01:19]} 29. Nb6 {[%clk 0:01:42]}  Ke6 {[%clk 0:01:14]} 30. f3 {[%clk 0:01:35]}  g4 {[%clk 0:01:13]} 31. Kf2 {[%clk 0:01:35]}  gxf3 {[%clk 0:01:08]} 32. Kxf3 {[%clk 0:01:35]}  Bb1 {[%clk 0:01:08]} 33. a3 {[%clk 0:01:33]}  Bc2 {[%clk 0:01:06]} 34. b4 {[%clk 0:01:32]}  Bd1+ {[%clk 0:01:05]} 35. Kf2 {[%clk 0:01:25]}  Kf5 {[%clk 0:01:04]} 36. Nd7 {[%clk 0:01:20]}  Ke4 {[%clk 0:01:02]} 37. Bb6 {[%clk 0:01:02]}  Bxb2 {[%clk 0:00:59]} 38. a4 {[%clk 0:00:49]}  Bd4+ {[%clk 0:00:32]} 39. Bxd4 {[%clk 0:00:48]}  Kxd4 {[%clk 0:00:33]} 40. Nc5 {[%clk 0:00:34]}  a5 {[%clk 0:00:23]} 41. Ke1 {[%clk 0:00:34]}  Bc2 {[%clk 0:00:08]} 42. Kd2 {[%clk 0:00:33]}  Bxa4 {[%clk 0:00:04]} 43. Nxa4 {[%clk 0:00:31]}  axb4 {[%clk 0:00:04]} 44. Nb2 {[%clk 0:00:30]}  Ke4 {[%clk 0:00:04]} 45. Ke2 {[%clk 0:00:28]}  Kf4 {[%clk 0:00:05]} 46. Kf2 {[%clk 0:00:27]}  Kg4 {[%clk 0:00:05]} 47. g3 {[%clk 0:00:27]}  Kf5 {[%clk 0:00:05]} 48. Kf3 {[%clk 0:00:27]}  Ke5 {[%clk 0:00:06]} 49. g4 {[%clk 0:00:27]}  Kf6 {[%clk 0:00:03]} 50. Kf4 {[%clk 0:00:27]}  Kg6 {[%clk 0:00:04]} 51. g5 {[%clk 0:00:26]}  Kg7 {[%clk 0:00:04]} 52. Kf5 {[%clk 0:00:26]}  b3 {[%clk 0:00:04]} 53. g6 {[%clk 0:00:25]}  Kg8 {[%clk 0:00:03]} 54. Kf6 {[%clk 0:00:24]}  Kf8 {[%clk 0:00:04]} 55. g7+ {[%clk 0:00:22]}  Kg8 {[%clk 0:00:04]} 56. Nd3 {[%clk 0:00:21]}  b5 {[%clk 0:00:01]} 57. Nb2 {[%clk 0:00:20]}  b4 {[%clk 0:00:01]} 58. Nd3 {[%clk 0:00:19]}  b2 {[%clk 0:00:02]} 59. Nxb2 {[%clk 0:00:19]}  b3 {[%clk 0:00:02]} 60. Nd3 {[%clk 0:00:19]}  b2 {[%clk 0:00:03]} 61. Nxb2 {[%clk 0:00:19]}  Kh7 {[%clk 0:00:04]} 62. Kf7 {[%clk 0:00:19]} 1-0

[Event "January 2 Early 2024"]
[Site "https://www.chess.com"]
[Date "2024.01.02"]
[Round "7"]
[White "Garcia Ramos, Daniel"]
[Black "Parfenov, Viktor N."]
[Result "1-0"]
[Board "65"]
[TimeControl "180+1"]
[WhiteFideId "32010311"]
[BlackFideId "4165969"]
[WhiteElo "2754"]
[BlackElo "2544"]
[WhiteTeam "ESP"]
[BlackTeam "RUS"]
[WhiteClock "0:02:32"]
[BlackClock "0:01:27"]

1. e4 {[%clk 0:03:00]}  e5 {[%clk 0:02:54]} 2. Nc3 {[%clk 0:02:59]}  Nf6 {[%clk 0:02:53]} 3. g3 {[%clk 0:02:59]}  Bc5 {[%clk 0:02:52]} 4. Bg2 {[%clk 0:02:59]}  O-O {[%clk 0:02:53]} 5. h3 {[%clk 0:02:56]}  Re8 {[%clk 0:02:51]} 6. Nge2 {[%clk 0:02:56]}  Nc6 {[%clk 0:02:51]} 7. O-O {[%clk 0:02:55]}  Nd4 {[%clk 0:02:51]} 8. d3 {[%clk 0:02:55]}  c6 {[%clk 0:02:51]} 9. Kh2 {[%clk 0:02:56]}  d5 {[%clk 0:02:49]} 10. f4 {[%clk 0:02:55]}  dxe4 {[%clk 0:02:40]} 11. dxe4 {[%clk 0:02:52]}  exf4 {[%clk 0:02:34]} 12. gxf4 {[%clk 0:02:50]}  Ng4+ {[%clk 0:02:21]} 13. hxg4 {[%clk 0:02:32]}  Qh4+ {[%clk 0:02:21]} 14. Bh3 {[%clk 0:02:33]}  Bxg4 {[%clk 0:02:21]} 15. Qd3 {[%clk 0:02:33]}  Nxe2 {[%clk 0:02:15]} 16. Nxe2 {[%clk 0:02:31]}  Rad8 {[%clk 0:02:15]} 17. Qg3 {[%clk 0:02:30]}  Qxg3+ {[%clk 0:01:44]} 18. Nxg3 {[%clk 0:02:31]}  Bxh3 {[%clk 0:01:27]} 19. Kxh3 {[%clk 0:02:32]} 1-0